fUST/lending_fUST_20241115
["ID","MTS","AMOUNT","RATE_DAILY","PERIOD"]
[342239338,1731623443500,-500.0,0.00016438,2]
[342239339,1731623443510,-500.0,0.00016438,2]
[342239340,1731623443519,-500.0,0.00016438,2]
[342239341,1731623443528,-799.3,0.00016438,2]
[342239342,1731623443538,-3212.37,0.00016438,2]
[342239343,1731623443547,-500.0,0.00016438,2]
[342239344,1731623443557,-151.0,0.00016438,2]
[342239345,1731623443566,-500.0,0.00016438,2]
[342239346,1731623443576,-151.0,0.00016438,2]
[342239347,1731623443585,-500.0,0.00016438,2]
[342239348,1731623443595,-586.04880438,0.00016438,2]
[342239349,1731623443604,-500.0,0.00016438,2]
[342239350,1731623443614,-500.0,0.00016438,2]
[342239351,1731623443624,-500.0,0.00016438,2]
[342239352,1731623443634,-500.0,0.00016438,2]
[342239353,1731623443643,-500.0,0.00016438,2]
[342239354,1731623443652,-500.0,0.00016438,2]
[342239355,1731623443665,-715.26,0.00016438,2]
[342239356,1731623443675,-168.06368299,0.00016438,2]
[342239357,1731623443684,-151.0,0.00016438,2]
[342239358,1731623443694,-151.0,0.00016438,2]
[342239359,1731623443704,-536.8166896,0.00016438,2]
[342239360,1731623443713,-151.0,0.00016438,2]
[342239361,1731623443723,-151.0,0.00016438,2]
[342239362,1731623443733,-151.0,0.00016438,2]
[342239363,1731623443742,-151.0,0.00016438,2]
[342239364,1731623443752,-500.0,0.00016438,2]
[342239365,1731623443761,-500.0,0.00016438,2]
[342239366,1731623443770,-2131.95,0.00016438,2]
[342239367,1731623443779,-1239.05,0.00016438,2]
[342239368,1731623443788,-563.01621406,0.00016438,2]
[342239369,1731623443798,-546.64974157,0.00016438,2]
[342239370,1731623443807,-2450.01,0.00016438,2]
[342239371,1731623443817,-500.0,0.00016438,2]
[342239372,1731623443826,-1000.0,0.00016438,2]
[342239373,1731623443835,-500.0,0.00016438,2]
[342239374,1731623443844,-500.0,0.00016438,2]
[342239375,1731623443853,-500.0,0.00016438,2]
[342239376,1731623443862,-500.0,0.00016438,2]
[342239377,1731623443873,-500.0,0.00016438,2]
[342239378,1731623443883,-865.67,0.00016438,2]
[342239379,1731623443893,-500.0,0.00016438,2]
[342239380,1731623443902,-500.0,0.00016438,2]
[342239381,1731623443911,-151.0,0.00016438,2]
[342239382,1731623443921,-151.0,0.00016438,2]
[342239383,1731623443930,-500.0,0.00016438,2]
[342239384,1731623443939,-500.0,0.00016438,2]
[342239385,1731623443948,-500.0,0.00016438,2]
[342239386,1731623443958,-844.49,0.00016438,2]
[342239387,1731623443967,-915.99,0.00016438,2]
[342239388,1731623443976,-500.0,0.00016438,2]
[342239389,1731623443986,-532.89212309,0.00016438,2]
[342239390,1731623443996,-500.0,0.00016438,2]
[342239391,1731623444005,-923.52,0.00016438,2]
[342239392,1731623444014,-441.924528,0.00016438,2]
[342239393,1731623444024,-441.924528,0.00016438,2]
[342239394,1731623444033,-441.924528,0.00016438,2]
[342239395,1731623444043,-441.924528,0.00016438,2]
[342239396,1731623444052,-441.924528,0.00016438,2]
[342239397,1731623444061,-500.0,0.00016438,2]
[342239398,1731623444070,-441.924528,0.00016438,2]
[342239399,1731623444079,-441.924528,0.00016438,2]
[342239400,1731623444089,-441.924528,0.00016438,2]
[342239401,1731623444099,-441.924528,0.00016438,2]
[342239402,1731623444108,-441.924528,0.00016438,2]
[342239403,1731623444118,-441.924528,0.00016438,2]
[342239404,1731623444127,-441.924528,0.00016438,2]
[342239405,1731623444136,-441.924528,0.00016438,2]
[342239406,1731623444146,-441.924528,0.00016438,2]
[342239407,1731623444155,-441.924528,0.00016438,2]
[342239408,1731623444165,-441.924528,0.00016438,2]
[342239409,1731623444174,-441.924528,0.00016438,2]
[342239410,1731623444183,-441.924524,0.00016438,2]
[342239411,1731623444192,-536.39645517,0.00016438,2]
[342239412,1731623444201,-2109.35,0.00016438,2]
[342239413,1731623444211,-516.60499647,0.00016438,2]
[342239414,1731623444220,-602.34662103,0.00016438,2]
[342239415,1731623444229,-538.07330671,0.00016438,2]
[342239416,1731623444238,-500.0,0.00016438,2]
[342239417,1731623444247,-500.0,0.00016438,2]
[342239418,1731623444256,-500.0,0.00016438,2]
[342239419,1731623444266,-500.0,0.00016438,2]
[342239420,1731623444275,-500.0,0.00016438,2]
[342239421,1731623444286,-500.0,0.00016438,2]
[342239422,1731623444295,-500.0,0.00016438,2]
[342239423,1731623444305,-29970.97,0.00016438,2]
[342239424,1731623444314,-500.0,0.00016438,2]
[342239425,1731623444324,-500.0,0.00016438,2]
[342239426,1731623444334,-500.0,0.00016438,2]
[342239427,1731623444343,-500.0,0.00016438,2]
[342239428,1731623444352,-500.0,0.00016438,2]
[342239429,1731623444362,-151.0,0.00016438,2]
[342239430,1731623444371,-151.0,0.00016438,2]
[342239431,1731623444380,-151.0,0.00016438,2]
[342239432,1731623444390,-151.0,0.00016438,2]
[342239433,1731623444399,-151.0,0.00016438,2]
[342239434,1731623444409,-500.0,0.00016438,2]
[342239435,1731623444419,-151.0,0.00016438,2]
[342239436,1731623444428,-151.0,0.00016438,2]
[342239437,1731623444437,-151.0,0.00016438,2]
[342239438,1731623444446,-151.0,0.00016438,2]
[342239439,1731623444456,-500.0,0.00016438,2]
[342239440,1731623444465,-500.0,0.00016438,2]
[342239441,1731623444475,-583.36,0.00016438,2]
[342239442,1731623444484,-531.84291197,0.00016438,2]
[342239443,1731623444493,-503.57572657,0.00016438,2]
[342239444,1731623444503,-500.0,0.00016438,2]
[342239445,1731623444512,-2390.5,0.00016438,2]
[342239446,1731623444521,-500.0,0.00016438,2]
[342239447,1731623444530,-500.0,0.00016438,2]
[342239448,1731623444539,-500.0,0.00016438,2]
[342239449,1731623444548,-500.0,0.00016438,2]
[342239450,1731623444558,-500.0,0.00016438,2]
[342239451,1731623444709,-151.0,0.00016438,2]
[342239452,1731623444719,-151.0,0.00016438,2]
[342239453,1731623444728,-151.0,0.00016438,2]
[342239454,1731623444738,-151.0,0.00016438,2]
[342239455,1731623444747,-151.0,0.00016438,2]
[342239456,1731623444756,-197.735719,0.00016438,2]
[342239457,1731623444765,-500.0,0.00016438,2]
[342239458,1731623444775,-500.0,0.00016438,2]
[342239459,1731623444784,-500.0,0.00016438,2]
[342239460,1731623444793,-500.0,0.00016438,2]
[342239461,1731623444802,-500.0,0.00016438,2]
[342239462,1731623444811,-151.0,0.00016438,2]
[342239463,1731623444820,-500.0,0.00016438,2]
[342239464,1731623444829,-151.0,0.00016438,2]
[342239465,1731623444838,-151.0,0.00016438,2]
[342239466,1731623444847,-151.0,0.00016438,2]
[342239467,1731623444856,-884.46,0.00016438,2]
[342239468,1731623444865,-151.0,0.00016438,2]
[342239469,1731623444874,-500.0,0.00016438,2]
[342239470,1731623444883,-84.64461655,0.00016438,2]
[342239471,1731623444920,-66.35538345,0.00016438,2]
[342239472,1731623444930,-185.71721,0.00016438,2]
[342239473,1731623444939,-62.66740655,0.00016438,2]
[342239474,1731623445101,-1905.99995,0.00016438,2]
[342239475,1731623445113,-503.26264345,0.00016438,2]
[342239476,1731623445122,-534.66126821,0.00016438,2]
[342239477,1731623445131,-529.83393222,0.00016438,2]
[342239478,1731623445140,-502.25495837,0.00016438,2]
[342239479,1731623445149,-575.25,0.00016438,2]
[342239480,1731623445158,-500.0,0.00016438,2]
[342239481,1731623445167,-500.0,0.00016438,2]
[342239482,1731623445176,-500.0,0.00016438,2]
[342239483,1731623445185,-500.0,0.00016438,2]
[342239484,1731623445194,-500.0,0.00016438,2]
[342239485,1731623445203,-500.0,0.00016438,2]
[342239486,1731623445212,-500.0,0.00016438,2]
[342239487,1731623445221,-500.0,0.00016438,2]
[342239488,1731623445231,-500.0,0.00016438,2]
[342239489,1731623445240,-500.0,0.00016438,2]
[342239490,1731623445249,-100.91397319,0.00016438,2]
[342239491,1731623445260,-399.08602681,0.00016438,2]
[342239492,1731623445269,-500.0,0.00016438,2]
[342239493,1731623445279,-500.0,0.00016438,2]
[342239494,1731623445288,-177.34143986,0.00016438,2]
[342239495,1731623445298,-531.04840918,0.00016438,2]
[342239496,1731623445307,-500.0,0.00016438,2]
[342239497,1731623445316,-253.37892415,0.00016438,2]
[342239498,1731623445328,-246.62107585,0.00016438,2]
[342239499,1731623445337,-211.55453174,0.00016438,2]
[342239500,1731623445346,-506.22415489,0.00016438,2]
[342239501,1731623445355,-500.0,0.00016438,2]
[342239502,1731623445365,-500.0,0.00016438,2]
[342239503,1731623445374,-500.0,0.00016438,2]
[342239504,1731623445383,-151.10023752,0.00016438,2]
[342239516,1731623446245,-381.19997084,0.00015357,2]
[342239522,1731623773301,162.080151,0.00023836,120]
[342239523,1731624187767,342.07,0.00010959,2]
[342239524,1731624198583,285.06,0.00010959,2]
[342239525,1731624209212,237.55,0.00010959,2]
[342239526,1731624219979,197.96,0.00010959,2]
[342239527,1731624230562,164.96,0.00010959,2]
[342239528,1731624241172,824.84,0.00010959,2]
[342239529,1731624442787,1000.0,0.00027,60]
[342239530,1731624445208,1000.0,0.00027,65]
[342239531,1731624446704,1000.0,0.00027,70]
[342239532,1731624448427,1000.0,0.00027,75]
[342239533,1731624455911,500.0,0.00027,61]
[342239554,1731624632247,-500.0,0.00013206,2]
[342239556,1731624632256,-56.86521642,0.00013234,2]
[342239559,1731624632269,-443.13478358,0.00013234,2]
[342239561,1731624632279,-500.0,0.00013931,2]
[342239563,1731624632289,-400.0,0.00013973,2]
[342239564,1731624632301,-193.9089319,0.00014181,2]
[342239567,1731624632311,-105.63548329,0.00014443,2]
[342239568,1731624632323,-945.86208021,0.00014443,2]
[342239569,1731624632333,-500.0,0.00014664,2]
[342239570,1731624632343,-171.16007024,0.00015335,2]
[342239571,1731624632353,-300.0,0.00015362,2]
[342239572,1731624632363,-24605.2513178,0.00015363,2]
[342239573,1731624632372,-500.0,0.00015435,2]
[342239574,1731624632382,-153.0,0.00015578,2]
[342239575,1731624632398,-473.2066248,0.00015578,2]
[342239576,1731624632407,-307.7019154,0.00015578,2]
[342239577,1731624632416,-303.8520826,0.00015578,2]
[342239578,1731624632426,-212.2422435,0.00015578,2]
[342239579,1731624632435,-153.0,0.00015578,2]
[342239580,1731624632444,-153.0,0.00015578,2]
[342239581,1731624632454,-212.2422435,0.00015578,2]
[342239582,1731624632463,-500.0,0.0001558,2]
[342239583,1731624632472,-757.200342,0.0001608,2]
[342239584,1731624632482,-465.53454331,0.00016147,2]
[342239585,1731624632491,-211.9439493,0.00016164,2]
[342239586,1731624632501,-386.45991551,0.00016185,2]
[342239587,1731624632511,-60140.63750538,0.00016185,2]
[342239588,1731624632521,-234.032,0.0001619,2]
[342239589,1731624632530,-212.2422435,0.000162,2]
[342239590,1731624632540,-500.0,0.00016248,2]
[342239591,1731624632552,-212.2422435,0.000163,2]
[342239592,1731624632561,-150.0,0.000163,2]
[342239593,1731624632570,-615.0,0.000163,2]
[342239594,1731624632579,-151.0,0.00016385,2]
[342239595,1731624632589,-151.0,0.00016385,2]
[342239596,1731624632598,-151.0,0.00016385,2]
[342239597,1731624632608,-277.507244,0.00016385,2]
[342239598,1731624632617,-277.507244,0.00016385,2]
[342239599,1731624632627,-212.2422435,0.000164,2]
[342239600,1731624632637,-212.2422435,0.000164,2]
[342239601,1731624632646,-212.2422435,0.000164,2]
[342239602,1731624632655,-212.2422435,0.000164,2]
[342239603,1731624632664,-210.4094763,0.000164,2]
[342239604,1731624632674,-150.0,0.000164,2]
[342239605,1731624632684,-299.1502,0.000164,2]
[342239606,1731624632693,-366.83742868,0.00016437,2]
[342239607,1731624632703,-500.0,0.00016437,2]
[342239608,1731624632712,-500.0,0.00016437,2]
[342239609,1731624632722,-232.50502167,0.00016437,2]
[342239610,1731624632731,-500.0,0.00016437,2]
[342239611,1731624632740,-500.0,0.00016437,2]
[342239612,1731624632749,-500.0,0.00016437,2]
[342239613,1731624632758,-178.67365241,0.00016437,2]
[342239614,1731624632768,-500.0,0.00016437,2]
[342239615,1731624632777,-207.47797614,0.00016437,2]
[342239616,1731624632786,-163.20370511,0.00016437,2]
[342239617,1731624632797,-236.75820923,0.00016437,2]
[342239618,1731624632806,-500.0,0.00016437,2]
[342239619,1731624632815,-188.49808353,0.00016437,2]
[342239620,1731624632824,-500.0,0.00016438,2]
[342239621,1731624632833,-151.0,0.00016438,2]
[342239622,1731624632843,-151.0,0.00016438,2]
[342239623,1731624632852,-151.0,0.00016438,2]
[342239624,1731624632861,-151.0,0.00016438,2]
[342239625,1731624632870,-151.0,0.00016438,2]
[342239626,1731624632881,-500.0,0.00016438,2]
[342239627,1731624632891,-151.0,0.00016438,2]
[342239628,1731624632900,-151.0,0.00016438,2]
[342239629,1731624632909,-151.0,0.00016438,2]
[342239630,1731624632919,-151.0,0.00016438,2]
[342239631,1731624632928,-151.0,0.00016438,2]
[342239632,1731624632938,-151.0,0.00016438,2]
[342239633,1731624632948,-151.0,0.00016438,2]
[342239634,1731624632958,-151.0,0.00016438,2]
[342239635,1731624632968,-151.0,0.00016438,2]
[342239636,1731624632977,-151.0,0.00016438,2]
[342239637,1731624632987,-151.0,0.00016438,2]
[342239638,1731624632996,-151.0,0.00016438,2]
[342239639,1731624633005,-151.0,0.00016438,2]
[342239640,1731624633014,-151.0,0.00016438,2]
[342239641,1731624633026,-172.577009,0.00016438,2]
[342239642,1731624633036,-151.0,0.00016438,2]
[342239643,1731624633046,-151.0,0.00016438,2]
[342239644,1731624633055,-151.0,0.00016438,2]
[342239645,1731624633066,-151.0,0.00016438,2]
[342239646,1731624633076,-151.0,0.00016438,2]
[342239647,1731624633086,-151.0,0.00016438,2]
[342239648,1731624633095,-151.0,0.00016438,2]
[342239649,1731624633105,-151.0,0.00016438,2]
[342239650,1731624633116,-151.0,0.00016438,2]
[342239651,1731624633125,-151.0,0.00016438,2]
[342239652,1731624633135,-151.0,0.00016438,2]
[342239653,1731624633144,-151.0,0.00016438,2]
[342239654,1731624633154,-151.0,0.00016438,2]
[342239655,1731624633163,-151.0,0.00016438,2]
[342239656,1731624633172,-151.0,0.00016438,2]
[342239657,1731624633182,-189.762247,0.00016438,2]
[342239658,1731624633191,-500.0,0.00016438,2]
[342239659,1731624633201,-151.0,0.00016438,2]
[342239660,1731624633211,-151.0,0.00016438,2]
[342239661,1731624633220,-151.0,0.00016438,2]
[342239662,1731624633229,-151.0,0.00016438,2]
[342239663,1731624633239,-151.0,0.00016438,2]
[342239664,1731624633248,-277.507244,0.00016438,2]
[342239665,1731624633258,-277.507244,0.00016438,2]
[342239666,1731624633267,-277.507244,0.00016438,2]
[342239667,1731624633277,-277.507244,0.00016438,2]
[342239668,1731624633286,-277.507244,0.00016438,2]
[342239669,1731624633297,-277.507244,0.00016438,2]
[342239670,1731624633307,-277.507244,0.00016438,2]
[342239671,1731624633317,-277.507244,0.00016438,2]
[342239672,1731624633327,-277.507244,0.00016438,2]
[342239673,1731624633336,-277.507244,0.00016438,2]
[342239674,1731624633346,-277.507244,0.00016438,2]
[342239675,1731624633356,-277.507244,0.00016438,2]
[342239676,1731624633366,-277.507244,0.00016438,2]
[342239677,1731624633375,-277.507244,0.00016438,2]
[342239678,1731624633385,-277.507244,0.00016438,2]
[342239679,1731624633395,-277.507244,0.00016438,2]
[342239680,1731624633405,-277.507244,0.00016438,2]
[342239681,1731624633415,-277.507236,0.00016438,2]
[342239682,1731624633425,-500.0,0.00016438,2]
[342239683,1731624633435,-151.0,0.00016438,2]
[342239684,1731624633445,-151.0,0.00016438,2]
[342239685,1731624633454,-151.0,0.00016438,2]
[342239686,1731624633464,-151.0,0.00016438,2]
[342239687,1731624633474,-151.0,0.00016438,2]
[342239688,1731624633484,-151.0,0.00016438,2]
[342239689,1731624633493,-500.0,0.00016438,2]
[342239690,1731624633503,-500.0,0.00016438,2]
[342239691,1731624633512,-841.0,0.00016438,2]
[342239692,1731624633521,-500.0,0.00016438,2]
[342239693,1731624633531,-500.0,0.00016438,2]
[342239694,1731624633542,-500.0,0.00016438,2]
[342239695,1731624633553,-500.0,0.00016438,2]
[342239696,1731624633563,-506.73797177,0.00016438,2]
[342239697,1731624633572,-500.0,0.00016438,2]
[342239698,1731624633581,-500.0,0.00016438,2]
[342239699,1731624633590,-500.0,0.00016438,2]
[342239700,1731624633599,-500.0,0.00016438,2]
[342239701,1731624633609,-710.31,0.00016438,2]
[342239702,1731624633618,-500.0,0.00016438,2]
[342239703,1731624633628,-500.0,0.00016438,2]
[342239704,1731624633637,-500.0,0.00016438,2]
[342239705,1731624633646,-500.0,0.00016438,2]
[342239706,1731624633656,-500.0,0.00016438,2]
[342239707,1731624633665,-500.0,0.00016438,2]
[342239708,1731624633675,-376.31299613,0.00016438,2]
[342239709,1731624633684,-500.0,0.00016438,2]
[342239710,1731624633694,-621.48,0.00016438,2]
[342239711,1731624633704,-500.0,0.00016438,2]
[342239712,1731624633713,-500.0,0.00016438,2]
[342239713,1731624633724,-500.0,0.00016438,2]
[342239714,1731624633733,-500.0,0.00016438,2]
[342239715,1731624633743,-500.0,0.00016438,2]
[342239716,1731624633753,-500.0,0.00016438,2]
[342239717,1731624633762,-500.0,0.00016438,2]
[342239718,1731624633772,-500.0,0.00016438,2]
[342239719,1731624633943,-507.53317809,0.00016438,2]
[342239720,1731624633954,-500.0,0.00016438,2]
[342239721,1731624633963,-500.0,0.00016438,2]
[342239722,1731624633975,-500.0,0.00016438,2]
[342239723,1731624633985,-500.0,0.00016438,2]
[342239724,1731624633994,-503.29658493,0.00016438,2]
[342239725,1731624634003,-500.0,0.00016438,2]
[342239726,1731624634014,-500.0,0.00016438,2]
[342239727,1731624634027,-500.0,0.00016438,2]
[342239728,1731624634038,-500.0,0.00016438,2]
[342239729,1731624634050,-500.0,0.00016438,2]
[342239730,1731624634059,-500.0,0.00016438,2]
[342239731,1731624634070,-500.0,0.00016438,2]
[342239732,1731624634080,-500.0,0.00016438,2]
[342239733,1731624634090,-500.0,0.00016438,2]
[342239734,1731624634100,-500.0,0.00016438,2]
[342239735,1731624634110,-500.0,0.00016438,2]
[342239736,1731624634120,-500.0,0.00016438,2]
[342239737,1731624634129,-500.0,0.00016438,2]
[342239738,1731624634139,-500.0,0.00016438,2]
[342239739,1731624634148,-500.0,0.00016438,2]
[342239740,1731624634157,-506.4035607,0.00016438,2]
[342239741,1731624634167,-501.79964262,0.00016438,2]
[342239742,1731624634176,-500.0,0.00016438,2]
[342239743,1731624634185,-500.0,0.00016438,2]
[342239744,1731624634195,-1234.22,0.00016438,2]
[342239745,1731624634204,-500.0,0.00016438,2]
[342239746,1731624634214,-500.0,0.00016438,2]
[342239747,1731624634223,-599.46268431,0.00016438,2]
[342239748,1731624634232,-500.0,0.00016438,2]
[342239749,1731624634242,-500.0,0.00016438,2]
[342239750,1731624634251,-500.0,0.00016438,2]
[342239751,1731624634261,-500.0,0.00016438,2]
[342239752,1731624634271,-661.29,0.00016438,2]
[342239753,1731624634280,-500.0,0.00016438,2]
[342239754,1731624634291,-500.0,0.00016438,2]
[342239755,1731624634302,-500.25359227,0.00016438,2]
[342239756,1731624634312,-500.0,0.00016438,2]
[342239757,1731624634322,-500.0,0.00016438,2]
[342239758,1731624634331,-500.0,0.00016438,2]
[342239759,1731624634341,-500.0,0.00016438,2]
[342239760,1731624634350,-1000.0,0.00016438,2]
[342239761,1731624634360,-739.93,0.00016438,2]
[342239762,1731624634373,-500.0,0.00016438,2]
[342239763,1731624634382,-500.0,0.00016438,2]
[342239764,1731624634392,-500.0,0.00016438,2]
[342239765,1731624634401,-500.0,0.00016438,2]
[342239766,1731624634410,-500.0,0.00016438,2]
[342239767,1731624634419,-500.0,0.00016438,2]
[342239768,1731624634428,-500.0,0.00016438,2]
[342239769,1731624634438,-500.0,0.00016438,2]
[342239770,1731624634447,-500.0,0.00016438,2]
[342239771,1731624634457,-500.0,0.00016438,2]
[342239772,1731624634466,-500.0,0.00016438,2]
[342239773,1731624634475,-587.10110663,0.00016438,2]
[342239774,1731624634484,-500.0,0.00016438,2]
[342239775,1731624634493,-543.56002106,0.00016438,2]
[342239776,1731624634503,-507.87401825,0.00016438,2]
[342239777,1731624634512,-827.74995434,0.00016438,2]
[342239778,1731624634530,-5.22004566,0.00016438,2]
[342239779,1731624634539,-500.0,0.00016438,2]
[342239780,1731624634552,-459.88690043,0.00016438,2]
[342239781,1731624634561,-168.25309391,0.00016438,2]
[342239782,1731624634573,-27.04824401,0.00016438,2]
[342239783,1731624634583,-409.46175599,0.00016438,2]
[342239784,1731624634595,-90.53824401,0.00016438,2]
[342239785,1731624634605,-180.88191647,0.00016438,2]
[342239786,1731624634616,-646.61,0.00016438,2]
[342239787,1731624634626,-92.66064394,0.00016438,2]
[342239788,1731624634647,-407.33935606,0.00016438,2]
[342239789,1731624634657,-226.56772193,0.00016438,2]
[342239796,1731624638318,-501.87227807,0.00016438,2]
[342239797,1731624638327,-500.0,0.00016438,2]
[342239798,1731624638337,-500.0,0.00016438,2]
[342239799,1731624638346,-500.0,0.00016438,2]
[342239800,1731624638355,-500.0,0.00016438,2]
[342239801,1731624638365,-500.0,0.00016438,2]
[342239802,1731624638375,-500.0,0.00016438,2]
[342239803,1731624638384,-761.17,0.00016438,2]
[342239804,1731624638393,-500.0,0.00016438,2]
[342239805,1731624638403,-518.03890353,0.00016438,2]
[342239806,1731624638412,-797.62,0.00016438,2]
[342239807,1731624638421,-684.54,0.00016438,2]
[342239808,1731624638431,-500.0,0.00016438,2]
[342239809,1731624638440,-500.0,0.00016438,2]
[342239810,1731624638450,-581.7,0.00016438,2]
[342239811,1731624638459,-500.0,0.00016438,2]
[342239812,1731624638468,-500.0,0.00016438,2]
[342239813,1731624638477,-500.0,0.00016438,2]
[342239814,1731624638486,-503.78489816,0.00016438,2]
[342239815,1731624638495,-500.0,0.00016438,2]
[342239816,1731624638504,-500.0,0.00016438,2]
[342239817,1731624638514,-500.0,0.00016438,2]
[342239818,1731624638523,-474.0815568,0.00016438,2]
[342239819,1731624638532,-500.0,0.00016438,2]
[342239820,1731624638542,-1076.44,0.00016438,2]
[342239821,1731624638552,-507.51025083,0.00016438,2]
[342239822,1731624638561,-452.83413451,0.00016438,2]
[342239823,1731624638570,-508.9535747,0.00016438,2]
[342239824,1731624638580,-500.0,0.00016438,2]
[342239825,1731624638589,-500.0,0.00016438,2]
[342239826,1731624638598,-500.0,0.00016438,2]
[342239827,1731624638608,-500.0,0.00016438,2]
[342239828,1731624638617,-500.0,0.00016438,2]
[342239829,1731624638627,-500.0,0.00016438,2]
[342239830,1731624638635,-500.0,0.00016438,2]
[342239831,1731624638644,-500.0,0.00016438,2]
[342239832,1731624638654,-500.0,0.00016438,2]
[342239833,1731624638663,-500.0,0.00016438,2]
[342239834,1731624638672,-806.08,0.00016438,2]
[342239835,1731624638681,-500.0,0.00016438,2]
[342239836,1731624638691,-159.52986273,0.00016438,2]
[342239837,1731624638699,-500.0,0.00016438,2]
[342239838,1731624638708,-500.0,0.00016438,2]
[342239839,1731624638718,-500.0,0.00016438,2]
[342239840,1731624638728,-619.09,0.00016438,2]
[342239841,1731624638738,-500.0,0.00016438,2]
[342239842,1731624638747,-500.0,0.00016438,2]
[342239843,1731624638755,-451.62113713,0.00016438,2]
[342239844,1731624638768,-48.37886287,0.00016438,2]
[342239845,1731624638777,-500.0,0.00016438,2]
[342239846,1731624638786,-500.0,0.00016438,2]
[342239847,1731624638795,-500.0,0.00016438,2]
[342239848,1731624638805,-500.0,0.00016438,2]
[342239849,1731624638814,-500.0,0.00016438,2]
[342239850,1731624638823,-500.0,0.00016438,2]
[342239851,1731624638832,-500.0,0.00016438,2]
[342239852,1731624638841,-500.0,0.00016438,2]
[342239853,1731624638851,-500.0,0.00016438,2]
[342239854,1731624638860,-500.0,0.00016438,2]
[342239855,1731624638869,-500.0,0.00016438,2]
[342239856,1731624638878,-500.0,0.00016438,2]
[342239857,1731624638887,-500.0,0.00016438,2]
[342239858,1731624638896,-532.95,0.00016438,2]
[342239859,1731624638905,-500.0,0.00016438,2]
[342239860,1731624638915,-500.0,0.00016438,2]
[342239861,1731624638924,-586.78625986,0.00016438,2]
[342239862,1731624638933,-500.0,0.00016438,2]
[342239863,1731624638942,-500.0,0.00016438,2]
[342239864,1731624638951,-500.0,0.00016438,2]
[342239865,1731624638959,-500.0,0.00016438,2]
[342239866,1731624638972,-740.21,0.00016438,2]
[342239867,1731624638981,-399.33083532,0.00016438,2]
[342239868,1731624638990,-500.0,0.00016438,2]
[342239869,1731624638998,-500.0,0.00016438,2]
[342239870,1731624639007,-297.75650361,0.00016438,2]
[342239871,1731624639017,-500.0,0.00016438,2]
[342239872,1731624639030,-500.0,0.00016438,2]
[342239873,1731624639039,-500.0,0.00016438,2]
[342239874,1731624639048,-500.0,0.00016438,2]
[342239875,1731624639057,-500.0,0.00016438,2]
[342239876,1731624639067,-747.95,0.00016438,2]
[342239877,1731624639076,-594.36737383,0.00016438,2]
[342239878,1731624639085,-500.0,0.00016438,2]
[342239879,1731624639096,-766.0,0.00016438,2]
[342239880,1731624639105,-3107.51,0.00016438,2]
[342239881,1731624639115,-523.63354465,0.00016438,2]
[342239882,1731624639124,-500.0,0.00016438,2]
[342239883,1731624639133,-1013.63,0.00016438,2]
[342239884,1731624639142,-500.0,0.00016438,2]
[342239885,1731624639153,-500.0,0.00016438,2]
[342239886,1731624639162,-500.0,0.00016438,2]